[Event "49th Rilton Cup 2019-20"]
[Site "Stockholm"]
[Date "2020.01.02"]
[Round "6.3"]
[White "Meshkovs, Nikita"]
[Black "Quesada Perez, Luis Ernesto"]
[Result "1/2-1/2"]
[ECO "A40"]
[WhiteElo "2558"]
[BlackElo "2499"]
[Annotator "ChessBase"]
[PlyCount "80"]
[EventDate "2019.12.27"]
[EventType "swiss"]
[EventCountry "SWE"]
[SourceTitle "playchess.com"]
[Source "ChessBase"]
[SourceQuality "1"]
[TimeControl "40/5400+30:1800+30"]

1. d4 {[%emt 0:01:14]} e6 {[%emt 0:04:34]} 2. Nf3 {[%emt 0:03:14]} f5 {[%emt 0:00:16]} 3. g3 {[%emt 0:03:14]} Nf6 {[%emt 0:00:07]} 4. Bg2 {[%emt 0:00:07]} d5 {[%emt 0:00:52]} 5. O-O {[%emt 0:01:33]} Bd6 {[%emt 0:00:15]} 6. c4 {[%emt 0:00:53]} c6 {[%emt 0:00:05]} 7. b3 {[%emt 0:00:26]} Qe7 {[%emt 0:00:18]} 8. Nc3 {[%emt 0:00:51]} O-O {[%emt 0:01:10]} 9. Bb2 {[%emt 0:04:15]} Nbd7 {[%emt 0:06:35]} 10. Rc1 {[%emt 0:06:35]} b6 {[%emt 0:01:05]} 11. cxd5 {[%emt 0:05:17]} exd5 {[%emt 0:01:20]} 12. Qc2 {[%emt 0:01:37]} g6 {[%emt 0:00:14]} 13. Rfd1 {[%emt 0:02:02]} Bb7 {[%emt 0:04:17]} 14. e3 {[%emt 0:06:58]} Ne4 {[%emt 0:17:07]} 15. Ne1 {[%emt 0:01:11]} Rae8 {[%emt 0:20:02]} 16. Nd3 {[%emt 0:02:15]} h5 {[%emt 0:00:11]} 17. Nf4 {[%emt 0:14:07]} Qg7 {[%emt 0:05:53]} 18. Qe2 {[%emt 0:03:27]} Ndf6 {[%emt 0:03:17]} 19. f3 {[%emt 0:08:13]} Nxc3 {[%emt 0:01:13]} 20. Bxc3 {[%emt 0:00:03]} h4 {[%emt 0:00:33]} 21. Qf2 {[%emt 0:02:47]} hxg3 {[%emt 0:00:57]} 22. hxg3 {[%emt 0:00:02]} Qh6 {[%emt 0:11:05]} 23. Nd3 {[%emt 0:06:15]} Rf7 {[%emt 0:05:30]} 24. Ne5 {[%emt 0:01:15]} Rh7 {[%emt 0:01:35]} 25. Kf1 {[%emt 0:02:53]} c5 {[%emt 0:00:11]} 26. f4 {[%emt 0:04:40]} Bxe5 {[%emt 0:01:14]} 27. dxe5 {[%emt 0:00:02]} Ng4 {[%emt 0:00:09]} 28. Qg1 {[%emt 0:02:06]} d4 {[%emt 0:07:38]} 29. Bxb7 {[%emt 0:03:20]} Nxe3+ {[%emt 0:00:16]} 30. Ke2 {[%emt 0:00:42]} Rxb7 {[%emt 0:00:17]} 31. Qh1 {[%emt 0:00:19]} Qh7 {[%emt 0:01:37]} 32. Qc6 {[%emt 0:00:25]} Qh2+ {[%emt 0:02:17]} 33. Kd3 {[%emt 0:00:01]} Nxd1 {[%emt 0:00:11]} 34. Qxe8+ {[%emt 0:06:01]} Kg7 {[%emt 0:00:00]} 35. Rxd1 {[%emt 0:02:34]} Qxg3+ {[%emt 0:00:02]} 36. Kc2 {[%emt 0:00:08]} Qxc3+ {[%emt 0:00:34]} 37. Kb1 {[%emt 0:00:00]} Qe3 {[%emt 0:02:28]} 38. Ka1 {[%emt 0:00:39]} Qc3+ {[%emt 0:00:11]} 39. Kb1 {[%emt 0:00:01]} Qe3 {[%emt 0:00:06]} 40. Ka1 {[%emt 0:00:19]} Qc3+ {[%emt 0:03:45]} 1/2-1/2

[Event "49th Rilton Cup 2019-20"]
[Site "Stockholm"]
[Date "2020.01.02"]
[Round "6.4"]
[White "Blomqvist, Erik"]
[Black "Nesterov, Arseniy"]
[Result "0-1"]
[ECO "C67"]
[WhiteElo "2537"]
[BlackElo "2482"]
[Annotator "ChessBase"]
[PlyCount "68"]
[EventDate "2019.12.27"]
[EventType "swiss"]
[EventCountry "SWE"]
[SourceTitle "playchess.com"]
[Source "ChessBase"]
[SourceQuality "1"]
[TimeControl "40/5400+30:1800+30"]

1. e4 {[%emt 0:00:00]} e5 {[%emt 0:00:00]} 2. Nf3 {[%emt 0:00:00]} Nc6 {[%emt 0:00:00]} 3. Bb5 {[%emt 0:00:11]} Nf6 {[%emt 0:00:00]} 4. O-O {[%emt 0:02:09]} Nxe4 {[%emt 0:00:11]} 5. Re1 {[%emt 0:00:15]} Nd6 {[%emt 0:00:18]} 6. Nxe5 {[%emt 0:00:12]} Nxe5 {[%emt 0:00:46]} 7. Rxe5+ {[%emt 0:00:12]} Be7 {[%emt 0:00:06]} 8. Bf1 {[%emt 0:00:14]} O-O {[%emt 0:00:10]} 9. d4 {[%emt 0:00:27]} Bf6 {[%emt 0:00:10]} 10. Re1 {[%emt 0:00:20]} Re8 {[%emt 0:00:08]} 11. Bf4 {[%emt 0:00:16]} Rxe1 {[%emt 0:00:05]} 12. Qxe1 {[%emt 0:00:07]} Ne8 {[%emt 0:00:06]} 13. Nc3 {[%emt 0:00:25]} Bxd4 {[%emt 0:00:49]} 14. Nd5 {[%emt 0:00:22]} c6 {[%emt 0:01:09]} 15. Ne7+ {[%emt 0:00:45]} Kf8 {[%emt 0:00:11]} 16. Nxc8 {[%emt 0:00:55]} Qf6 {[%emt 0:00:14]} 17. Rd1 {[%emt 0:00:55]} Rxc8 {[%emt 0:01:29]} 18. Qe4 {[%emt 0:00:27]} Bxf2+ {[%emt 0:07:34]} 19. Kxf2 {[%emt 0:00:24]} g5 {[%emt 0:00:05]} 20. Rxd7 {[%emt 0:00:58]} Rc7 {[%emt 0:04:04]} 21. Rxc7 {[%emt 0:18:30]} Nxc7 {[%emt 0:00:07]} 22. Bd3 {[%emt 0:00:56]} gxf4 {[%emt 0:10:03]} 23. Qb4+ {[%emt 0:16:37]} Kg7 {[%emt 0:00:29]} 24. Qxb7 {[%emt 0:00:33]} Nd5 {[%emt 0:13:07]} 25. Qxa7 {[%emt 0:03:44]} Qxb2 {[%emt 0:02:54]} 26. a4 {[%emt 0:08:43]} Qc3 {[%emt 0:12:31]} 27. Kf3 {[%emt 0:15:28]} Qe5 {[%emt 0:22:38]} 28. a5 {[%emt 0:04:58]} Ne3 {[%emt 0:19:54]} 29. Qd7 {[%emt 0:20:08]} h5 {[%emt 0:02:36]} 30. Qxc6 {[%emt 0:03:44]} Nc4 {[%emt 0:01:27]} 31. g3 {[%emt 0:01:08]} Nd2+ {[%emt 0:00:44]} 32. Kf2 {[%emt 0:01:24]} Qd4+ {[%emt 0:01:09]} 33. Ke2 {[%emt 0:00:30]} Qe3+ {[%emt 0:00:04]} 34. Kd1 {[%emt 0:00:04]} Nb1 {[%emt 0:00:05]} 0-1

[Event "49th Rilton Cup 2019-20"]
[Site "Stockholm"]
[Date "2020.01.02"]
[Round "6.5"]
[White "Ionov, Sergey"]
[Black "Pantzar, Milton"]
[Result "1/2-1/2"]
[ECO "A13"]
[WhiteElo "2521"]
[BlackElo "2410"]
[Annotator "ChessBase"]
[PlyCount "67"]
[EventDate "2019.12.27"]
[EventType "swiss"]
[EventCountry "SWE"]
[SourceTitle "playchess.com"]
[Source "ChessBase"]
[SourceQuality "1"]
[TimeControl "40/5400+30:1800+30"]

1. c4 {[%emt 0:00:00]} e6 {[%emt 0:01:24]} 2. g3 {[%emt 0:02:56]} d5 {[%emt 0:01:01]} 3. Bg2 {[%emt 0:00:07]} c6 {[%emt 0:02:37]} 4. Qc2 {[%emt 0:05:54]} Nf6 {[%emt 0:03:18]} 5. Nf3 {[%emt 0:00:28]} Be7 {[%emt 0:08:15]} 6. d4 {[%emt 0:08:51]} O-O {[%emt 0:00:52]} 7. O-O {[%emt 0:00:09]} b6 {[%emt 0:00:29]} 8. Rd1 {[%emt 0:05:56]} Bb7 {[%emt 0:01:52]} 9. Nc3 {[%emt 0:06:28]} Nbd7 {[%emt 0:06:02]} 10. b3 {[%emt 0:03:11]} Rc8 {[%emt 0:02:48]} 11. e4 {[%emt 0:04:48]} c5 {[%emt 0:11:31]} 12. exd5 {[%emt 0:03:02]} exd5 {[%emt 0:00:43]} 13. Qf5 {[%emt 0:00:20]} dxc4 {[%emt 0:09:21]} 14. d5 {[%emt 0:00:17]} Ne8 {[%emt 0:01:14]} 15. d6 {[%emt 0:15:08]} Bf6 {[%emt 0:04:37]} 16. Ng5 {[%emt 0:01:43]} g6 {[%emt 0:06:07]} 17. Qh3 {[%emt 0:03:03]} h5 {[%emt 0:03:00]} 18. Bxb7 {[%emt 0:11:00]} Rb8 {[%emt 0:00:30]} 19. Bd5 {[%emt 0:10:26]} Bxc3 {[%emt 0:00:50]} 20. Rb1 {[%emt 0:05:30]} Nef6 {[%emt 0:06:33]} 21. Bxc4 {[%emt 0:01:26]} Ne5 {[%emt 0:02:07]} 22. Bf4 {[%emt 0:03:19]} Nxc4 {[%emt 0:10:43]} 23. bxc4 {[%emt 0:00:02]} Qd7 {[%emt 0:01:01]} 24. Qxd7 {[%emt 0:02:15]} Nxd7 {[%emt 0:00:03]} 25. Rb3 {[%emt 0:02:17]} Bf6 {[%emt 0:02:38]} 26. Nf3 {[%emt 0:01:39]} Rfe8 {[%emt 0:00:36]} 27. Ra3 {[%emt 0:00:44]} a5 {[%emt 0:02:12]} 28. Re3 {[%emt 0:00:50]} Rxe3 {[%emt 0:04:20]} 29. fxe3 {[%emt 0:00:07]} Re8 {[%emt 0:02:12]} 30. Kf2 {[%emt 0:00:37]} Re4 {[%emt 0:01:32]} 31. Nd2 {[%emt 0:00:36]} Re6 {[%emt 0:00:18]} 32. Nf3 {[%emt 0:00:16]} Re4 {[%emt 0:00:29]} 33. Nd2 {[%emt 0:00:05]} Re6 {[%emt 0:00:13]} 34. Nf3 {[%emt 0:00:06]} 1/2-1/2

[Event "49th Rilton Cup 2019-20"]
[Site "Stockholm"]
[Date "2020.01.02"]
[Round "6.9"]
[White "Abdrlauf, Elham"]
[Black "Miezis, Normunds"]
[Result "0-1"]
[ECO "E11"]
[WhiteElo "2328"]
[BlackElo "2486"]
[Annotator "ChessBase"]
[PlyCount "78"]
[EventDate "2019.12.27"]
[EventType "swiss"]
[EventCountry "SWE"]
[SourceTitle "playchess.com"]
[Source "ChessBase"]
[SourceQuality "1"]
[TimeControl "40/5400+30:1800+30"]

1. d4 {[%emt 0:04:08]} Nf6 {[%emt 0:00:00]} 2. c4 {[%emt 0:00:06]} e6 {[%emt 0:00:57]} 3. Nf3 {[%emt 0:00:43]} Bb4+ {[%emt 0:00:58]} 4. Nbd2 {[%emt 0:00:09]} b6 {[%emt 0:06:53]} 5. a3 {[%emt 0:01:34]} Bxd2+ {[%emt 0:00:09]} 6. Bxd2 {[%emt 0:01:20]} Bb7 {[%emt 0:00:13]} 7. e3 {[%emt 0:03:30]} d6 {[%emt 0:05:20]} 8. Bd3 {[%emt 0:01:30]} Nbd7 {[%emt 0:00:21]} 9. Qc2 {[%emt 0:14:38]} e5 {[%emt 0:04:30]} 10. e4 {[%emt 0:05:57]} a5 {[%emt 0:05:01]} 11. c5 {[%emt 0:04:01]} bxc5 {[%emt 0:06:54]} 12. dxe5 {[%emt 0:00:09]} dxe5 {[%emt 0:00:09]} 13. O-O {[%emt 0:06:15]} O-O {[%emt 0:00:39]} 14. Rfe1 {[%emt 0:05:53]} Qe7 {[%emt 0:07:48]} 15. Rac1 {[%emt 0:10:58]} Rfd8 {[%emt 0:11:32]} 16. Bc3 {[%emt 0:19:08]} Ba6 {[%emt 0:05:49]} 17. Bxa6 {[%emt 0:03:55]} Rxa6 {[%emt 0:00:12]} 18. Qe2 {[%emt 0:04:00]} Rda8 {[%emt 0:00:48]} 19. Nd2 {[%emt 0:01:12]} Ne8 {[%emt 0:06:14]} 20. Nc4 {[%emt 0:01:34]} Nd6 {[%emt 0:06:31]} 21. Ne3 {[%emt 0:01:29]} Nf6 {[%emt 0:03:26]} 22. f3 {[%emt 0:02:12]} a4 {[%emt 0:00:55]} 23. Nf5 {[%emt 0:01:04]} Qe6 {[%emt 0:00:25]} 24. Qf2 {[%emt 0:00:48]} Nd7 {[%emt 0:02:24]} 25. Ne3 {[%emt 0:02:02]} Nb5 {[%emt 0:00:45]} 26. f4 {[%emt 0:01:02]} f6 {[%emt 0:09:33]} 27. fxe5 {[%emt 0:00:37]} fxe5 {[%emt 0:00:43]} 28. Qg3 {[%emt 0:01:54]} Nd6 {[%emt 0:03:15]} 29. Nd5 {[%emt 0:01:15]} R6a7 {[%emt 0:00:42]} 30. Rcd1 {[%emt 0:00:28]} c4 {[%emt 0:02:39]} 31. Nb4 {[%emt 0:01:10]} Re8 {[%emt 0:01:41]} 32. Qe3 {[%emt 0:00:33]} Raa8 {[%emt 0:03:18]} 33. Rd5 {[%emt 0:00:19]} Nf7 {[%emt 0:01:58]} 34. Red1 {[%emt 0:00:30]} Nf6 {[%emt 0:00:48]} 35. Rc5 {[%emt 0:00:32]} Rad8 {[%emt 0:00:14]} 36. Rxd8 {[%emt 0:00:52]} Rxd8 {[%emt 0:00:05]} 37. h3 {[%emt 0:00:31]} Qb6 {[%emt 0:00:51]} 38. Nc2 {[%emt 0:00:06]} Rd3 {[%emt 0:00:46]} 39. Qf2 {[%emt 0:00:55]} Nxe4 {[%emt 0:00:24]} 0-1

[Event "49th Rilton Cup 2019-20"]
[Site "Stockholm"]
[Date "2020.01.02"]
[Round "6.10"]
[White "Acikel, Mert"]
[Black "Gagare, Shardul"]
[Result "0-1"]
[ECO "C07"]
[WhiteElo "2094"]
[BlackElo "2468"]
[Annotator "ChessBase"]
[PlyCount "56"]
[EventDate "2019.12.27"]
[EventType "swiss"]
[EventCountry "SWE"]
[SourceTitle "playchess.com"]
[Source "ChessBase"]
[SourceQuality "1"]
[TimeControl "40/5400+30:1800+30"]

1. e4 {[%emt 0:00:58]} e6 {[%emt 0:00:10]} 2. d4 {[%emt 0:00:11]} d5 {[%emt 0:00:05]} 3. Nd2 {[%emt 0:00:35]} c5 {[%emt 0:00:21]} 4. exd5 {[%emt 0:00:10]} Qxd5 {[%emt 0:00:00]} 5. Ngf3 {[%emt 0:00:12]} cxd4 {[%emt 0:00:13]} 6. Bc4 {[%emt 0:00:17]} Qd8 {[%emt 0:00:20]} 7. O-O {[%emt 0:00:30]} Nc6 {[%emt 0:00:08]} 8. Nb3 {[%emt 0:00:11]} a6 {[%emt 0:00:08]} 9. Nbxd4 {[%emt 0:00:07]} Nxd4 {[%emt 0:00:11]} 10. Nxd4 {[%emt 0:00:11]} Qc7 {[%emt 0:00:10]} 11. Bb3 {[%emt 0:00:50]} Bd6 {[%emt 0:00:13]} 12. Re1 {[%emt 0:00:15]} Ne7 {[%emt 0:03:15]} 13. Qh5 {[%emt 0:46:01]} O-O {[%emt 0:07:26]} 14. c3 {[%emt 0:07:35]} Bd7 {[%emt 0:09:23]} 15. Bc2 {[%emt 0:02:32]} Ng6 {[%emt 0:05:22]} 16. Re3 {[%emt 0:02:10]} Qc5 {[%emt 0:06:02]} 17. Qg4 {[%emt 0:06:18]} Rae8 {[%emt 0:27:07]} 18. b4 {[%emt 0:04:54]} Qc4 {[%emt 0:14:35]} 19. Bd2 {[%emt 0:11:39]} Bf4 {[%emt 0:02:04]} 20. Qe2 {[%emt 0:05:46]} Qc7 {[%emt 0:05:11]} 21. Rh3 {[%emt 0:01:11]} e5 {[%emt 0:01:11]} 22. Nf5 {[%emt 0:00:19]} e4 {[%emt 0:02:39]} 23. Qh5 {[%emt 0:01:42]} h6 {[%emt 0:00:11]} 24. Bb3 {[%emt 0:02:14]} Kh7 {[%emt 0:03:08]} 25. Be3 {[%emt 0:00:28]} Re5 {[%emt 0:03:28]} 26. g4 {[%emt 0:01:18]} Qc8 {[%emt 0:00:57]} 27. Bd4 {[%emt 0:04:22]} Bxf5 {[%emt 0:00:47]} 28. gxf5 {[%emt 0:00:28]} Rxf5 {[%emt 0:00:04]} 0-1

[Event "49th Rilton Cup 2019-20"]
[Site "Stockholm"]
[Date "2020.01.02"]
[Round "6.11"]
[White "Keinanen, Toivo"]
[Black "Vestby-Ellingsen, Mads"]
[Result "1-0"]
[ECO "A37"]
[WhiteElo "2447"]
[BlackElo "2346"]
[Annotator "NA"]
[PlyCount "83"]
[EventDate "2019.12.27"]
[EventType "swiss"]
[EventCountry "SWE"]
[SourceTitle "playchess.com"]
[Source "ChessBase"]
[SourceQuality "1"]
[TimeControl "40/5400+30:1800+30"]

1. Nf3 {[%emt 0:00:00]} c5 {[%emt 0:00:00]} 2. c4 {[%emt 0:00:00]} Nc6 {[%emt 0:00:02]} 3. Nc3 {[%emt 0:00:00]} g6 {[%emt 0:00:31]} 4. g3 {[%emt 0:00:02]} Bg7 {[%emt 0:00:11]} 5. Bg2 {[%emt 0:00:03]} d6 {[%emt 0:00:20]} 6. O-O {[%emt 0:00:11]} e6 {[%emt 0:00:21]} 7. e3 {[%emt 0:00:04]} Nge7 {[%emt 0:00:13]} 8. d4 {[%emt 0:00:02]} O-O {[%emt 0:00:14]} 9. Rb1 {[%emt 0:00:01] A37: Symmetrical English vs ...g6: 4 Bg2 Bg7 5 Nf3} (9. Re1 Rb8 10. b3 e5 11. dxe5 dxe5 12. Ba3 Qa5 13. Qc1 e4 14. Nxe4 f5 15. Bb2 fxe4 16. Ng5 Ne5 17. Bxe4 {0-1 (27) Yu,Y (2739)-Jones,G (2702) Hengshui 2019}) 9... Rb8 {[%emt 0:13:09]} 10. dxc5 $146 {[%emt 0:01:39]} ({Predecessor:} 10. b3 b6 11. Bb2 cxd4 12. exd4 d5 13. cxd5 exd5 14. Ba3 Re8 15. Re1 Bg4 16. h3 Bxf3 17. Qxf3 Nxd4 {½-½ (60) Donchenko,A (2607)-Babula,V (2538) Germany 2018}) 10... dxc5 {[%emt 0:00:27]} 11. Qe2 {[%emt 0:00:02]} Nf5 {[%emt 0:09:15]} 12. Ne4 {[%emt 0:07:57]} Qe7 {[%emt 0:06:20]} 13. b3 {[%emt 0:04:07]} b6 {[%emt 0:09:55]} 14. Bb2 {[%emt 0:06:35]} Bb7 {[%emt 0:04:21]} 15. Bxg7 {[%emt 0:06:02]} Nxg7 {[%emt 0:00:26]} 16. Qb2 {[%emt 0:01:07]} f5 {[%emt 0:02:37]} 17. Nc3 $1 {[%emt 0:01:21]} Nh5 {[%emt 0:04:17]} 18. a3 {[%emt 0:04:04]} Rbd8 {[%emt 0:04:09]} 19. b4 {[%emt 0:06:47]} Nf6 {[%emt 0:00:34]} 20. Na4 {[%emt 0:12:35]} Ne4 {[%emt 0:02:34]} 21. bxc5 {[%emt 0:04:49]} Nxc5 {[%emt 0:00:17]} 22. Nxc5 {[%emt 0:00:57]} Qxc5 {[%emt 0:00:09]} 23. Nd4 {[%emt 0:02:27]} Nxd4 {[%emt 0:13:51]} 24. exd4 $11 {[%emt 0:00:57]} Qc7 {[%emt 0:00:07]} 25. Bxb7 {[%emt 0:01:32]} Qxb7 {[%emt 0:00:08]} 26. c5 {[%emt 0:02:18]} Rb8 {[%emt 0:06:29]} 27. Rfe1 {[%emt 0:04:02]} Qd7 {[%emt 0:03:10]} 28. Qb3 {[%emt 0:02:04]} Kf7 {[%emt 0:02:19]} 29. Qe3 {[%emt 0:05:27]} bxc5 {[%emt 0:01:15]} 30. dxc5 {[%emt 0:00:49]} Rxb1 31. Rxb1 {[%emt 0:00:01]} Rc8 {[%emt 0:01:43]} 32. h4 {[%emt 0:07:00]} Qd5 {[%emt 0:05:54]} 33. Qh6 {[%emt 0:08:52]} Kg8 {[%emt 0:00:08]} 34. h5 {[%emt 0:01:15]} Qd3 {[%emt 0:04:47]} 35. Rc1 {[%emt 0:07:39]} Rc6 {[%emt 0:00:35]} 36. hxg6 {[%emt 0:00:24]} hxg6 {[%emt 0:00:23]} 37. Qxg6+ {[%emt 0:00:53]} Kf8 {[%emt 0:00:01]} 38. Qf6+ {[%emt 0:01:47]} Kg8 {[%emt 0:00:01]} 39. Qg6+ {[%emt 0:00:05]} Kf8 {[%emt 0:00:08]} 40. Qf6+ {[%emt 0:01:46]} Kg8 {[%emt 0:00:08]} 41. Qe7 {[%emt 0:32:04]} a6 {[%emt 0:35:03]} 42. Qe8+ {[%emt 0:00:00]} 1-0

[Event "49th Rilton Cup 2019-20"]
[Site "Stockholm"]
[Date "2020.01.02"]
[Round "6.12"]
[White "Serarols Mabras, Bernat"]
[Black "Dhulipalla Bala Chandra Prasad"]
[Result "0-1"]
[ECO "D11"]
[WhiteElo "2356"]
[BlackElo "2414"]
[Annotator "ChessBase"]
[PlyCount "116"]
[EventDate "2019.12.27"]
[EventType "swiss"]
[EventCountry "SWE"]
[SourceTitle "playchess.com"]
[Source "ChessBase"]
[SourceQuality "1"]
[TimeControl "40/5400+30:1800+30"]

1. d4 {[%emt 0:00:00]} d5 {[%emt 0:00:00]} 2. c4 {[%emt 0:00:00]} c6 {[%emt 0:00:00]} 3. Nf3 {[%emt 0:00:00]} Nf6 {[%emt 0:00:00]} 4. e3 {[%emt 0:00:00]} Bg4 {[%emt 0:00:00]} 5. h3 {[%emt 0:00:17]} Bh5 {[%emt 0:00:00]} 6. g4 {[%emt 0:00:13]} Bg6 {[%emt 0:00:00]} 7. Ne5 {[%emt 0:00:09]} e6 {[%emt 0:00:00]} 8. Nd2 {[%emt 0:00:06]} Nbd7 {[%emt 0:00:03]} 9. Nxg6 {[%emt 0:00:08]} hxg6 {[%emt 0:00:02]} 10. Bg2 {[%emt 0:00:10]} Bd6 {[%emt 0:00:12]} 11. O-O {[%emt 0:10:29]} Qe7 {[%emt 0:00:02]} 12. f4 {[%emt 0:00:02]} g5 {[%emt 0:00:23]} 13. fxg5 {[%emt 0:04:39]} Nh7 {[%emt 0:00:07]} 14. h4 {[%emt 0:00:31]} Nhf8 {[%emt 0:00:30]} 15. Nf3 {[%emt 0:12:05]} dxc4 {[%emt 0:00:05]} 16. Qe2 {[%emt 0:10:12]} e5 {[%emt 0:09:55]} 17. Qxc4 {[%emt 0:08:23]} e4 {[%emt 0:08:06]} 18. Ne5 {[%emt 0:00:07]} Bxe5 {[%emt 0:01:07]} 19. dxe5 {[%emt 0:06:18]} Rxh4 {[%emt 0:11:48]} 20. Qxe4 {[%emt 0:10:58]} Qxe5 {[%emt 0:11:43]} 21. Qxe5+ {[%emt 0:08:20]} Nxe5 {[%emt 0:00:19]} 22. Rf5 {[%emt 0:00:59]} Nxg4 {[%emt 0:15:53]} 23. b4 {[%emt 0:05:45]} Rd8 {[%emt 0:14:24]} 24. b5 {[%emt 0:07:21]} g6 {[%emt 0:12:59]} 25. Rf1 {[%emt 0:02:14]} Ne6 {[%emt 0:00:10]} 26. bxc6 {[%emt 0:00:52]} bxc6 {[%emt 0:00:02]} 27. Bxc6+ {[%emt 0:00:47]} Kf8 {[%emt 0:00:01]} 28. Ba3+ {[%emt 0:04:39]} Kg8 {[%emt 0:00:46]} 29. Rfd1 {[%emt 0:01:34]} Rxd1+ {[%emt 0:07:19]} 30. Rxd1 {[%emt 0:00:06]} Rh3 {[%emt 0:00:08]} 31. Rb1 {[%emt 0:02:51]} Nxg5 {[%emt 0:02:56]} 32. Rb8+ {[%emt 0:00:03]} Kh7 {[%emt 0:00:06]} 33. Bb2 {[%emt 0:00:50]} f6 {[%emt 0:00:56]} 34. Bd4 {[%emt 0:01:37]} a5 {[%emt 0:03:21]} 35. Ra8 {[%emt 0:00:32]} Rg3+ {[%emt 0:01:06]} 36. Kf1 {[%emt 0:01:01]} Ne6 {[%emt 0:00:47]} 37. Rxa5 {[%emt 0:02:25]} Nxe3+ {[%emt 0:00:15]} 38. Bxe3 {[%emt 0:00:32]} Rxe3 {[%emt 0:00:01]} 39. Ra7+ {[%emt 0:01:02]} Kh6 {[%emt 0:02:58]} 40. a4 {[%emt 0:01:05]} Rc3 {[%emt 0:00:54]} 41. Be8 {[%emt 0:11:51]} Nf4 {[%emt 0:04:58]} 42. a5 {[%emt 0:02:10]} Rf3+ {[%emt 0:03:08]} 43. Kg1 {[%emt 0:00:03]} Kg5 {[%emt 0:00:43]} 44. Bc6 {[%emt 0:01:50]} Rc3 {[%emt 0:01:58]} 45. Bb5 {[%emt 0:05:43]} Rc2 {[%emt 0:07:34]} 46. a6 {[%emt 0:03:49]} Ne2+ {[%emt 0:07:56]} 47. Kf1 {[%emt 0:01:36]} Nd4 {[%emt 0:00:22]} 48. Rb7 {[%emt 0:03:15]} Ra2 {[%emt 0:02:55]} 49. Bc4 {[%emt 0:00:53]} Ra4 {[%emt 0:00:11]} 50. Bd3 {[%emt 0:01:43]} f5 {[%emt 0:01:29]} 51. Rb6 {[%emt 0:00:59]} Kf4 {[%emt 0:02:51]} 52. Rxg6 {[%emt 0:00:23]} Kf3 {[%emt 0:00:44]} 53. Rb6 {[%emt 0:01:28]} f4 {[%emt 0:00:11]} 54. Rb1 {[%emt 0:00:52]} Ke3 {[%emt 0:00:23]} 55. Rd1 {[%emt 0:01:00]} Ra2 {[%emt 0:00:13]} 56. Re1+ {[%emt 0:00:32]} Kxd3 {[%emt 0:00:08]} 57. Re8 {[%emt 0:00:10]} Rxa6 {[%emt 0:00:14]} 58. Kf2 {[%emt 0:00:03]} Ra2+ {[%emt 0:00:23]} 0-1

[Event "49th Rilton Cup 2019-20"]
[Site "Stockholm"]
[Date "2020.01.02"]
[Round "6.14"]
[White "Savanovic, Aleksandar"]
[Black "Santarius, Erik"]
[Result "1-0"]
[ECO "C87"]
[WhiteElo "2420"]
[BlackElo "2382"]
[Annotator "NA"]
[PlyCount "113"]
[EventDate "2019.12.27"]
[EventType "swiss"]
[EventCountry "SWE"]
[SourceTitle "playchess.com"]
[Source "ChessBase"]
[SourceQuality "1"]
[TimeControl "40/5400+30:1800+30"]

1. e4 {[%emt 0:00:00]} e5 {[%emt 0:00:00]} 2. Nf3 {[%emt 0:00:00]} Nc6 {[%emt 0:00:00]} 3. Bb5 {[%emt 0:00:00]} a6 {[%emt 0:00:12]} 4. Ba4 {[%emt 0:00:00]} Nf6 {[%emt 0:00:18]} 5. O-O {[%emt 0:00:05]} Be7 {[%emt 0:00:21]} 6. Re1 {[%emt 0:00:06]} d6 {[%emt 0:00:18]} 7. c3 {[%emt 0:01:07]} Bg4 {[%emt 0:00:23]} 8. d3 {[%emt 0:00:26]} Nd7 {[%emt 0:00:21]} 9. Nbd2 $146 {[%emt 0:00:15] C87: Closed Ruy Lopez: Steinitz-type lines after 6 Re1 d6} ({Predecessor:} 9. h3 Bh5 10. Bxc6 (10. Nbd2 Nc5 11. Bc2 {½-½ (57) Garcia Pantoja,R (2536)-Arenas Vanegas,D (2448) Medellin 2019}) 10... bxc6 11. d4 c5 12. Be3 Rb8 13. b3 g5 14. dxc5 dxc5 15. Nbd2 f6 16. Nf1 c4 {1-0 (36) Giri,A (2779)-Mamedyarov,S (2765) Paris 2019}) 9... Nc5 {[%emt 0:00:28]} 10. Bc2 {[%emt 0:00:06]} Ne6 {[%emt 0:00:23]} 11. h3 {[%emt 0:02:03]} Bh5 {[%emt 0:00:27]} 12. Nf1 {[%emt 0:01:23]} Ng5 {[%emt 0:00:51]} 13. Bxg5 {[%emt 0:02:09]} Bxg5 {[%emt 0:00:15]} 14. Ng3 {[%emt 0:00:20]} Bxf3 {[%emt 0:00:37]} 15. Qxf3 {[%emt 0:00:07]} g6 {[%emt 0:00:46]} 16. Nf1 {[%emt 0:04:25]} O-O {[%emt 0:02:46]} 17. Ne3 {[%emt 0:00:43]} Bxe3 {[%emt 0:01:21]} 18. Qxe3 {[%emt 0:03:55]} Qh4 {[%emt 0:02:53]} 19. Rf1 {[%emt 0:20:00]} f5 {[%emt 0:06:02]} 20. exf5 {[%emt 0:00:51]} gxf5 {[%emt 0:00:34]} 21. f4 {[%emt 0:03:00]} Kh8 {[%emt 0:02:35]} 22. Ba4 {[%emt 0:08:48]} Ne7 {[%emt 0:08:07]} 23. Qf2 {[%emt 0:04:31]} Qh6 {[%emt 0:01:28]} 24. Rae1 {[%emt 0:07:30]} Ng6 {[%emt 0:01:59]} 25. fxe5 {[%emt 0:00:57]} dxe5 {[%emt 0:00:25]} 26. Kh2 {[%emt 0:10:39]} Rad8 {[%emt 0:02:50]} 27. Qe3 {[%emt 0:03:09]} f4 {[%emt 0:06:10]} 28. Qe4 {[%emt 0:02:58]} c5 {[%emt 0:01:09]} 29. Bd1 {[%emt 0:02:32]} Qg5 {[%emt 0:02:17]} 30. Bf3 $11 {[%emt 0:01:35]} Rf6 {[%emt 0:02:15]} 31. Qxb7 {[%emt 0:04:03]} Rfd6 {[%emt 0:07:38]} 32. Be4 {[%emt 0:03:52]} Qg3+ {[%emt 0:02:20]} 33. Kh1 {[%emt 0:00:32]} f3 {[%emt 0:05:31]} 34. Bxf3 {[%emt 0:00:26]} Nf4 {[%emt 0:00:43]} 35. Qe7 {[%emt 0:04:32]} Nxd3 {[%emt 0:06:29]} 36. Be4 {[%emt 0:00:49]} R6d7 {[%emt 0:05:44]} 37. Rf8+ {[%emt 0:00:36]} Rxf8 {[%emt 0:00:07]} 38. Qxf8+ {[%emt 0:00:15]} Qg8 {[%emt 0:00:07]} 39. Qxg8+ {[%emt 0:00:08]} Kxg8 {[%emt 0:00:06]} 40. Bxd3 {[%emt 0:00:19]} Rxd3 {[%emt 0:00:07]} 41. Rxe5 {[%emt 0:30:07]} Rd2 {[%emt 0:30:24]} 42. Rxc5 {[%emt 0:02:47]} Rxb2 {[%emt 0:00:07]} 43. Ra5 {[%emt 0:00:22]} Rc2 {[%emt 0:00:09]} 44. Rxa6 {[%emt 0:00:05]} Rxc3 {[%emt 0:00:06]} 45. Ra7 {[%emt 0:00:06]} Rc2 {[%emt 0:02:24]} 46. Kh2 {[%emt 0:00:12]} Kh8 {[%emt 0:01:38]} 47. a4 {[%emt 0:00:47]} Rc4 {[%emt 0:01:08]} 48. a5 {[%emt 0:00:20]} Ra4 {[%emt 0:00:43]} 49. g4 {[%emt 0:01:29]} h5 {[%emt 0:06:05]} 50. Kg3 {[%emt 0:01:12]} hxg4 {[%emt 0:00:39]} 51. hxg4 {[%emt 0:00:04]} Kg8 {[%emt 0:02:47]} 52. Kh4 {[%emt 0:00:06]} Rc4 {[%emt 0:00:30]} 53. Kh5 {[%emt 0:00:09]} Rd4 {[%emt 0:01:13]} 54. g5 {[%emt 0:00:09]} Rd6 {[%emt 0:00:09]} 55. a6 {[%emt 0:00:04]} Rc6 {[%emt 0:00:39]} 56. g6 {[%emt 0:00:09]} Rc1 {[%emt 0:00:44]} 57. Rb7 {[%emt 0:00:08]} 1-0